fUSD/lending_fUSD_20260601
["ID","MTS","AMOUNT","RATE_DAILY","PERIOD"]
[423581817,1780249843000,-152.25193405,0.00024658,2]
[423581843,1780249843000,-172.0,0.00025,2]
[423581824,1780249843000,-500.0,0.00024658,2]
[423581823,1780249843000,-500.0,0.00024658,2]
[423581821,1780249843000,-500.0,0.00024658,2]
[423581819,1780249843000,-500.0,0.00024658,2]
[423581820,1780249843000,-500.0,0.00024658,2]
[423581827,1780249843000,-500.0,0.00024658,2]
[423581836,1780249843000,-689.16297716,0.0002483,2]
[423581822,1780249843000,-500.0,0.00024658,2]
[423581833,1780249843000,-500.0,0.00024658,2]
[423581831,1780249843000,-500.0,0.00024658,2]
[423581838,1780249843000,-9879.42828868,0.0002485,2]
[423581830,1780249843000,-500.0,0.00024658,2]
[423581835,1780249843000,-263.44388484,0.0002483,2]
[423581828,1780249843000,-500.0,0.00024658,2]
[423581837,1780249843000,-2781.82699784,0.00024846,2]
[423581832,1780249843000,-500.0,0.00024658,2]
[423581829,1780249843000,-500.0,0.00024658,2]
[423581834,1780249843000,-583.89972078,0.00024658,2]
[423581917,1780249844000,-200.0,0.00025904,2]
[423581911,1780249844000,-932.0,0.00025719,2]
[423581913,1780249844000,-151.0,0.00025786,2]
[423581910,1780249844000,-150.0,0.00025719,2]
[423581912,1780249844000,-6852.15,0.00025786,2]
[423581903,1780249844000,-1842.0326633,0.00025603,2]
[423581907,1780249844000,-544.951,0.00025719,2]
[423581901,1780249844000,-518.696371,0.00025471,2]
[423581902,1780249844000,-5504.0,0.000255,3]
[423581905,1780249844000,-3550.0,0.00025719,2]
[423581916,1780249844000,-5531.0,0.000259,5]
[423581906,1780249844000,-1356.0,0.00025719,2]
[423581918,1780249844000,-2991.49051684,0.00025942,2]
[423581925,1780249844000,-4917.82941975,0.00026425,2]
[423581920,1780249844000,-157.06,0.00026,2]
[423581914,1780249844000,-150.0,0.00025786,2]
[423581919,1780249844000,-500.0,0.00026,2]
[423581932,1780249844000,-656.0,0.00027137,2]
[423581922,1780249844000,-1910.18787185,0.00026151,2]
[423581921,1780249844000,-154.0,0.00026005,3]
[423581928,1780249844000,-200.0,0.00026692,2]
[423581929,1780249844000,-1980.8648231,0.00026699,2]
[423581923,1780249844000,-842.8,0.00026296,2]
[423581924,1780249844000,-10259.85300746,0.00026425,2]
[423581926,1780249844000,-413.61503396,0.00026479,2]
[423581904,1780249844000,-207.11,0.00025644,2]
[423581915,1780249844000,-206.95,0.00025801,2]
[423581900,1780249844000,-518.696371,0.00025471,2]
[423581872,1780249844000,-500.0,0.0002529,2]
[423581909,1780249844000,-525.0,0.00025719,2]
[423581871,1780249844000,-500.0,0.0002529,2]
[423581874,1780249844000,-500.0,0.0002529,2]
[423581873,1780249844000,-500.0,0.0002529,2]
[423581885,1780249844000,-500.0,0.0002529,2]
[423581883,1780249844000,-500.0,0.0002529,2]
[423581880,1780249844000,-500.0,0.0002529,2]
[423581876,1780249844000,-500.0,0.0002529,2]
[423581879,1780249844000,-500.0,0.0002529,2]
[423581877,1780249844000,-500.0,0.0002529,2]
[423581875,1780249844000,-500.0,0.0002529,2]
[423581878,1780249844000,-500.0,0.0002529,2]
[423581881,1780249844000,-500.0,0.0002529,2]
[423581882,1780249844000,-500.0,0.0002529,2]
[423581886,1780249844000,-500.0,0.0002529,2]
[423581889,1780249844000,-500.0,0.0002529,2]
[423581887,1780249844000,-500.0,0.0002529,2]
[423581892,1780249844000,-7764.55,0.00025291,7]
[423581888,1780249844000,-500.0,0.0002529,2]
[423581890,1780249844000,-500.0,0.0002529,2]
[423581894,1780249844000,-649.601898,0.00025471,2]
[423581896,1780249844000,-649.601898,0.00025471,2]
[423581893,1780249844000,-2884.75459676,0.00025394,2]
[423581891,1780249844000,-174.93720831,0.0002529,2]
[423581897,1780249844000,-649.601898,0.00025471,2]
[423581895,1780249844000,-649.601898,0.00025471,2]
[423581899,1780249844000,-518.696371,0.00025471,2]
[423581898,1780249844000,-518.696371,0.00025471,2]
[423581908,1780249844000,-1273.0,0.00025719,2]
[423581930,1780249844000,-194.2058089,0.00027,30]
[423581933,1780249844000,-1517.36,0.000272,7]
[423581931,1780249844000,-7764.55,0.00027055,7]
[423581967,1780249844000,-656.0,0.00027671,2]
[423581970,1780249844000,-1335.43,0.000278,7]
[423581962,1780249844000,-1000.0,0.00027498,28]
[423581965,1780249844000,-10000.0,0.00027645,2]
[423581964,1780249844000,-2000.0,0.00027645,2]
[423581969,1780249844000,-500.0,0.00027773,2]
[423581972,1780249844000,-510.84206724,0.00028028,7]
[423581982,1780249844000,-151.0,0.00028227,7]
[423581976,1780249844000,-500.0,0.000281,7]
[423581974,1780249844000,-500.0,0.000281,7]
[423581978,1780249844000,-656.0,0.00028205,3]
[423581971,1780249844000,-388.41161781,0.00028,30]
[423581966,1780249844000,-6732.367104,0.00027645,2]
[423581977,1780249844000,-518.8,0.000281,7]
[423581973,1780249844000,-500.0,0.000281,7]
[423581975,1780249844000,-500.0,0.000281,7]
[423581981,1780249844000,-151.0,0.00028227,7]
[423581987,1780249844000,-164.80397149,0.00028291,2]
[423581988,1780249844000,-191.29795585,0.00028291,2]
[423581986,1780249844000,-500.0,0.00028291,2]
[423581985,1780249844000,-1300.0,0.00028278,60]
[423581989,1780249844000,-173.63273163,0.00028291,2]
[423581984,1780249844000,-200.0,0.00028268,2]
[423581983,1780249844000,-842.8,0.00028267,2]
[423581990,1780249844000,-151.0937274,0.00028291,2]
[423581927,1780249844000,-33633.61707273,0.00026521,2]
[423581980,1780249844000,-151.0,0.00028227,7]
[423581968,1780249844000,-2266.0,0.000277,2]
[423581979,1780249844000,-8039.84873938,0.00028227,2]
[423581961,1780249844000,-179.60049455,0.00027489,2]
[423581934,1780249844000,-2054.15682156,0.00027247,2]
[423581963,1780249844000,-2000.0,0.000275,7]
[423581937,1780249844000,-150.0,0.00027397,30]
[423581935,1780249844000,-300.0,0.00027396,10]
[423581938,1780249844000,-298.92315729,0.00027397,2]
[423581939,1780249844000,-1500.0,0.00027397,2]
[423581936,1780249844000,-150.0,0.00027397,2]
[423581944,1780249844000,-1406.279124,0.00027397,2]
[423581940,1780249844000,-300.0,0.00027397,2]
[423581942,1780249844000,-1406.279124,0.00027397,2]
[423581943,1780249844000,-1406.279124,0.00027397,2]
[423581945,1780249844000,-151.0,0.00027397,2]
[423581954,1780249844000,-486.43,0.000274,7]
[423581952,1780249844000,-168.51463,0.00027397,2]
[423581941,1780249844000,-1406.279124,0.00027397,2]
[423581959,1780249844000,-236.67,0.00027476,2]
[423581960,1780249844000,-200.0,0.0002748,2]
[423581950,1780249844000,-17484.73,0.00027397,10]
[423581958,1780249844000,-500.0,0.00027456,60]
[423581947,1780249844000,-151.0,0.00027397,2]
[423581955,1780249844000,-5020.83,0.000274,14]
[423581951,1780249844000,-14570.61,0.00027397,10]
[423581953,1780249844000,-168.51463,0.00027397,2]
[423581948,1780249844000,-652.23,0.00027397,20]
[423581946,1780249844000,-151.0,0.00027397,2]
[423581957,1780249844000,-1300.0,0.00027456,60]
[423581956,1780249844000,-631.8,0.000274,2]
[423581949,1780249844000,-20981.68,0.00027397,10]
[423582025,1780249845000,-1590.0,0.0002853,3]
[423582036,1780249845000,-417.2,0.00028581,2]
[423582033,1780249845000,-575.08,0.0002858,2]
[423582029,1780249845000,-395.93,0.0002858,2]
[423582026,1780249845000,-1000.0,0.00028539,4]
[423582031,1780249845000,-643.71,0.0002858,2]
[423582030,1780249845000,-184.98,0.0002858,2]
[423582022,1780249845000,-1000.0,0.00028424,60]
[423582021,1780249845000,-2000.0,0.000284,2]
[423582023,1780249845000,-33633.61707273,0.00028481,2]
[423582037,1780249845000,-643.71,0.00028581,2]
[423582028,1780249845000,-572.81,0.0002858,2]
[423582035,1780249845000,-481.96,0.00028581,2]
[423582057,1780249845000,-229.24,0.0002863,2]
[423582034,1780249845000,-572.81,0.00028581,2]
[423582032,1780249845000,-481.96,0.0002858,2]
[423582044,1780249845000,-643.71,0.00028581,2]
[423582038,1780249845000,-395.93,0.00028581,2]
[423582041,1780249845000,-395.93,0.00028581,2]
[423582039,1780249845000,-481.96,0.00028581,2]
[423582040,1780249845000,-572.81,0.00028581,2]
[423582042,1780249845000,-602.12,0.00028581,2]
[423582046,1780249845000,-558.95,0.00028594,2]
[423582056,1780249845000,-830.3,0.0002863,30]
[423582045,1780249845000,-643.71,0.00028594,2]
[423582024,1780249845000,-2319.0,0.0002853,3]
[423582043,1780249845000,-395.93,0.00028581,2]
[423582027,1780249845000,-395.95,0.0002858,2]
[423581993,1780249845000,-288.55294515,0.00028291,2]
[423582013,1780249845000,-161.48617791,0.0002833,2]
[423581994,1780249845000,-277.29517833,0.00028291,2]
[423582048,1780249845000,-643.71,0.00028594,2]
[423581992,1780249845000,-267.06044891,0.00028291,2]
[423581991,1780249845000,-167.00446498,0.00028291,2]
[423581995,1780249845000,-171.47790974,0.00028291,2]
[423582005,1780249845000,-154.54437356,0.00028312,2]
[423581996,1780249845000,-163.61205637,0.00028291,2]
[423581999,1780249845000,-171.43725822,0.00028312,2]
[423582000,1780249845000,-219.62124153,0.00028312,2]
[423581997,1780249845000,-159.13488312,0.00028291,2]
[423582002,1780249845000,-156.78123228,0.00028312,2]
[423582004,1780249845000,-216.43131754,0.00028312,2]
[423582003,1780249845000,-196.17437972,0.00028312,2]
[423582017,1780249845000,-9879.42828868,0.00028353,2]
[423582007,1780249845000,-151.91119103,0.0002833,2]
[423582006,1780249845000,-236.6719912,0.0002833,2]
[423582001,1780249845000,-167.29274395,0.00028312,2]
[423582011,1780249845000,-175.07971732,0.0002833,2]
[423582020,1780249845000,-5020.83,0.000284,14]
[423582008,1780249845000,-162.5883515,0.0002833,2]
[423582019,1780249845000,-486.43,0.000284,7]
[423582014,1780249845000,-151.57106199,0.0002833,2]
[423582018,1780249845000,-159.57643107,0.00028374,2]
[423582010,1780249845000,-159.81869547,0.0002833,2]
[423582009,1780249845000,-173.49280665,0.0002833,2]
[423582015,1780249845000,-153.47924305,0.0002833,2]
[423582012,1780249845000,-160.15353928,0.0002833,2]
[423582016,1780249845000,-151.03828496,0.0002833,2]
[423581998,1780249845000,-177.08219595,0.00028312,2]
[423582047,1780249845000,-643.71,0.00028594,2]
[423582054,1780249845000,-1877.48,0.0002863,30]
[423582050,1780249845000,-184.9,0.00028596,2]
[423582084,1780249845000,-229.47,0.00028756,7]
[423582089,1780249845000,-830.3,0.00028797,7]
[423582090,1780249845000,-1037.09,0.00028797,7]
[423582087,1780249845000,-1877.48,0.00028797,7]
[423582088,1780249845000,-1079.35,0.00028797,7]
[423582085,1780249845000,-229.24,0.00028788,30]
[423582091,1780249845000,-782.07,0.00028797,7]
[423582092,1780249845000,-1820.9,0.00028797,7]
[423582093,1780249845000,-544.84171,0.0002881,2]
[423582095,1780249845000,-544.84171,0.0002881,2]
[423582096,1780249845000,-7764.55,0.00028819,7]
[423582094,1780249845000,-544.84171,0.0002881,2]
[423582098,1780249845000,-229.24,0.0002882,2]
[423582102,1780249845000,-1000.0,0.00028849,3]
[423582104,1780249845000,-229.24,0.00028852,7]
[423582100,1780249845000,-229.47,0.0002882,2]
[423582111,1780249845000,-229.24,0.00028883,30]
[423582105,1780249845000,-229.47,0.00028852,7]
[423582108,1780249845000,-200.0,0.00028866,2]
[423582113,1780249845000,-229.47,0.00028883,30]
[423582115,1780249845000,-1000.0,0.00028892,7]
[423582117,1780249845000,-1000.0,0.00028892,10]
[423582128,1780249845000,-300.0,0.00028894,3]
[423582049,1780249845000,-184.97,0.00028595,2]
[423582126,1780249845000,-151.0,0.00028894,7]
[423582124,1780249845000,-300.0,0.00028893,10]
[423582122,1780249845000,-1000.0,0.00028893,2]
[423582086,1780249845000,-229.47,0.00028788,30]
[423582080,1780249845000,-229.24,0.00028725,2]
[423582119,1780249845000,-1000.0,0.00028892,30]
[423582075,1780249845000,-1356.0,0.00028719,2]
[423582076,1780249845000,-1273.0,0.00028719,2]
[423582052,1780249845000,-407.13,0.00028605,2]
[423582051,1780249845000,-184.97,0.00028605,2]
[423582055,1780249845000,-1079.35,0.0002863,30]
[423582058,1780249845000,-1037.09,0.0002863,30]
[423582063,1780249845000,-229.47,0.00028661,7]
[423582070,1780249845000,-409.3563322,0.00028687,2]
[423582062,1780249845000,-229.24,0.00028661,7]
[423582061,1780249845000,-229.47,0.0002863,2]
[423582067,1780249845000,-500.0,0.00028686,2]
[423582069,1780249845000,-395.17083677,0.00028686,2]
[423582060,1780249845000,-1820.9,0.0002863,30]
[423582065,1780249845000,-500.0,0.00028686,2]
[423582053,1780249845000,-395.93,0.00028605,2]
[423582064,1780249845000,-500.0,0.00028686,2]
[423582059,1780249845000,-782.07,0.0002863,30]
[423582077,1780249845000,-525.0,0.00028719,2]
[423582078,1780249845000,-150.0,0.00028719,2]
[423582071,1780249845000,-229.24,0.00028693,30]
[423582082,1780249845000,-656.0,0.00028739,3]
[423582079,1780249845000,-932.0,0.00028719,2]
[423582073,1780249845000,-1000.0,0.00028699,14]
[423582066,1780249845000,-500.0,0.00028686,2]
[423582083,1780249845000,-229.24,0.00028756,7]
[423582081,1780249845000,-229.47,0.00028725,2]
[423582072,1780249845000,-229.47,0.00028693,30]
[423582074,1780249845000,-3550.0,0.00028719,2]
[423582068,1780249845000,-500.0,0.00028686,2]
[423582162,1780249846000,-1025.72372848,0.00029,2]
[423582180,1780249846000,-229.47,0.0002901,2]
[423582159,1780249846000,-151.0,0.00028997,7]
[423582164,1780249846000,-2151.13,0.00029,2]
[423582174,1780249846000,-156.0,0.00029,2]
[423582172,1780249846000,-25000.0,0.00029,7]
[423582173,1780249846000,-1517.36,0.00029,7]
[423582170,1780249846000,-246.87,0.00029,30]
[423582171,1780249846000,-1000.0,0.00029,7]
[423582178,1780249846000,-273.05167002,0.00029004,30]
[423582169,1780249846000,-799.11,0.00029,30]
[423582192,1780249846000,-29244.44150746,0.000291,2]
[423582176,1780249846000,-156.0,0.00029,2]
[423582175,1780249846000,-156.0,0.00029,2]
[423582179,1780249846000,-229.24,0.0002901,2]
[423582182,1780249846000,-229.47,0.00029042,7]
[423582191,1780249846000,-300.0,0.00029099,10]
[423582190,1780249846000,-151.0,0.00029097,7]
[423582181,1780249846000,-229.24,0.00029042,7]
[423582184,1780249846000,-251.29512864,0.00029049,7]
[423582183,1780249846000,-285.74381964,0.00029049,7]
[423582166,1780249846000,-10000.0,0.00029,2]
[423582177,1780249846000,-156.0,0.00029,2]
[423582163,1780249846000,-25000.0,0.00029,7]
[423582148,1780249846000,-1079.35,0.00028964,2]
[423582161,1780249846000,-10000.0,0.00029,2]
[423582186,1780249846000,-229.24,0.00029074,30]
[423582135,1780249846000,-582.61742672,0.000289,30]
[423582133,1780249846000,-300.0,0.000289,10]
[423582130,1780249846000,-3202.83,0.000289,2]
[423582139,1780249846000,-229.47,0.00028915,2]
[423582137,1780249846000,-229.24,0.00028915,2]
[423582141,1780249846000,-229.24,0.00028947,7]
[423582145,1780249846000,-605.99032272,0.00028957,4]
[423582147,1780249846000,-1877.48,0.00028964,2]
[423582150,1780249846000,-1037.09,0.00028964,2]
[423582143,1780249846000,-229.47,0.00028947,7]
[423582149,1780249846000,-830.3,0.00028964,2]
[423582151,1780249846000,-782.07,0.00028964,2]
[423582155,1780249846000,-229.47,0.00028979,30]
[423582152,1780249846000,-1820.9,0.00028964,2]
[423582154,1780249846000,-229.24,0.00028979,30]
[423582153,1780249846000,-25000.0,0.00028974,7]
[423582157,1780249846000,-25000.0,0.00028982,7]
[423582167,1780249846000,-25000.0,0.00029,7]
[423582168,1780249846000,-151.0,0.00029,7]
[423582156,1780249846000,-1472.28872652,0.00028981,2]
[423582165,1780249846000,-9050.6420793,0.00029,7]
[423582158,1780249846000,-25000.0,0.00028991,7]
[423582160,1780249846000,-300.0,0.00028999,10]
[423582185,1780249846000,-350.0,0.00029065,8]
[423582230,1780249846000,-151.0,0.000291,7]
[423582189,1780249846000,-350.0,0.00029096,12]
[423582226,1780249846000,-151.0,0.000291,7]
[423582221,1780249846000,-1334.460671,0.000291,7]
[423582229,1780249846000,-151.0,0.000291,7]
[423582228,1780249846000,-151.0,0.000291,7]
[423582231,1780249846000,-272.898764,0.000291,7]
[423582249,1780249846000,-1600.0,0.0002917,3]
[423582232,1780249846000,-2000.0,0.000291,2]
[423582236,1780249846000,-200.77908344,0.0002913,20]
[423582244,1780249846000,-229.24,0.00029137,7]
[423582235,1780249846000,-500.0,0.0002913,5]
[423582233,1780249846000,-229.24,0.00029105,2]
[423582240,1780249846000,-830.3,0.00029132,30]
[423582237,1780249846000,-390.56574748,0.0002913,5]
[423582238,1780249846000,-1877.48,0.00029132,30]
[423582239,1780249846000,-1079.35,0.00029132,30]
[423582243,1780249846000,-1820.9,0.00029132,30]
[423582241,1780249846000,-1037.09,0.00029132,30]
[423582242,1780249846000,-782.07,0.00029132,30]
[423582246,1780249846000,-229.24,0.00029169,30]
[423582247,1780249846000,-229.47,0.00029169,30]
[423582245,1780249846000,-229.47,0.00029137,7]
[423582248,1780249846000,-2318.0,0.0002917,3]
[423582188,1780249846000,-152.0,0.00029091,30]
[423582224,1780249846000,-1836.785998,0.000291,7]
[423582225,1780249846000,-1334.460671,0.000291,7]
[423582234,1780249846000,-229.47,0.00029105,2]
[423582223,1780249846000,-151.0,0.000291,7]
[423582227,1780249846000,-1836.785998,0.000291,7]
[423582187,1780249846000,-229.47,0.00029074,30]
[423582194,1780249846000,-3202.83,0.000291,2]
[423582193,1780249846000,-3202.83,0.000291,2]
[423582195,1780249846000,-486.43,0.000291,7]
[423582196,1780249846000,-5020.83,0.000291,14]
[423582197,1780249846000,-1300.0,0.000291,60]
[423582199,1780249846000,-500.0,0.000291,60]
[423582206,1780249846000,-1624.27862703,0.000291,2]
[423582205,1780249846000,-1624.27862703,0.000291,2]
[423582207,1780249846000,-544.84172,0.000291,2]
[423582208,1780249846000,-544.84171,0.000291,2]
[423582201,1780249846000,-302.63,0.000291,2]
[423582213,1780249846000,-1512.76108133,0.000291,2]
[423582216,1780249846000,-1836.785998,0.000291,7]
[423582209,1780249846000,-544.84171,0.000291,2]
[423582217,1780249846000,-1334.460671,0.000291,7]
[423582218,1780249846000,-151.0,0.000291,7]
[423582214,1780249846000,-194.674,0.000291,20]
[423582215,1780249846000,-1334.460671,0.000291,7]
[423582210,1780249846000,-1908.01128282,0.000291,2]
[423582212,1780249846000,-1512.76108133,0.000291,2]
[423582211,1780249846000,-1908.01128282,0.000291,2]
[423582219,1780249846000,-1836.785998,0.000291,7]
[423582286,1780249847000,-572.81,0.00029402,2]
[423582288,1780249847000,-575.08,0.00029402,2]
[423582287,1780249847000,-572.81,0.00029402,2]
[423582289,1780249847000,-395.93,0.00029402,2]
[423582285,1780249847000,-575.08,0.00029402,2]
[423582292,1780249847000,-575.08,0.00029402,2]
[423582280,1780249847000,-234.30527898,0.000294,2]
[423582283,1780249847000,-477.34,0.00029402,2]
[423582281,1780249847000,-234.30527898,0.000294,2]
[423582291,1780249847000,-572.81,0.00029402,2]
[423582284,1780249847000,-395.93,0.00029402,2]
[423582282,1780249847000,-574.87,0.00029402,2]
[423582290,1780249847000,-395.93,0.00029402,2]
[423582300,1780249847000,-395.93,0.00029417,2]
[423582293,1780249847000,-481.97,0.00029416,2]
[423582295,1780249847000,-395.93,0.00029416,2]
[423582297,1780249847000,-10294.9525,0.00029416,2]
[423582298,1780249847000,-575.08,0.00029417,2]
[423582299,1780249847000,-572.6,0.00029417,2]
[423582294,1780249847000,-249.04,0.00029416,2]
[423582301,1780249847000,-643.71,0.00029418,2]
[423582304,1780249847000,-631.83,0.00029418,2]
[423582303,1780249847000,-643.71,0.00029418,2]
[423582302,1780249847000,-184.91,0.00029418,2]
[423582308,1780249847000,-646.02,0.00029421,2]
[423582278,1780249847000,-152.60045911,0.000294,2]
[423582296,1780249847000,-573.36,0.00029416,2]
[423582271,1780249847000,-200.0,0.0002933,2]
[423582254,1780249847000,-163.0,0.00029192,3]
[423582275,1780249847000,-222.00769049,0.000294,2]
[423582252,1780249847000,-2319.0,0.0002917,3]
[423582251,1780249847000,-2319.0,0.0002917,3]
[423582309,1780249847000,-185.8,0.00029421,2]
[423582255,1780249847000,-229.24,0.00029201,2]
[423582250,1780249847000,-2319.0,0.0002917,3]
[423582253,1780249847000,-163.0,0.0002917,3]
[423582257,1780249847000,-1000.0,0.00029212,7]
[423582267,1780249847000,-1820.9,0.00029299,7]
[423582256,1780249847000,-229.47,0.00029201,2]
[423582258,1780249847000,-229.33,0.00029232,7]
[423582259,1780249847000,-229.48,0.00029232,7]
[423582262,1780249847000,-1877.48,0.00029299,7]
[423582274,1780249847000,-25000.0,0.00029362,10]
[423582266,1780249847000,-782.07,0.00029299,7]
[423582265,1780249847000,-1037.09,0.00029299,7]
[423582260,1780249847000,-656.0,0.00029273,4]
[423582264,1780249847000,-830.3,0.00029299,7]
[423582261,1780249847000,-477.53,0.00029299,10]
[423582279,1780249847000,-234.305279,0.000294,2]
[423582270,1780249847000,-25000.0,0.00029327,10]
[423582277,1780249847000,-222.00769048,0.000294,2]
[423582269,1780249847000,-25000.0,0.00029318,10]
[423582268,1780249847000,-25000.0,0.00029309,10]
[423582273,1780249847000,-25000.0,0.00029353,10]
[423582276,1780249847000,-222.00769048,0.000294,2]
[423582272,1780249847000,-200.0,0.0002933,2]
[423582263,1780249847000,-1079.35,0.00029299,7]
[423582305,1780249847000,-643.45,0.0002942,2]
[423582313,1780249847000,-643.19,0.00029429,2]
[423582316,1780249847000,-1877.48,0.00029467,2]
[423582341,1780249847000,-180.07873568,0.00029568,2]
[423582343,1780249847000,-227.62883869,0.00029569,2]
[423582342,1780249847000,-220.38734155,0.00029569,2]
[423582345,1780249847000,-159.29446831,0.0002959,2]
[423582344,1780249847000,-154.0846633,0.0002959,2]
[423582350,1780249847000,-201.03299932,0.0002959,2]
[423582348,1780249847000,-226.17192559,0.0002959,2]
[423582351,1780249847000,-160.90163915,0.0002959,2]
[423582347,1780249847000,-161.91558304,0.0002959,2]
[423582346,1780249847000,-221.00231335,0.0002959,2]
[423582349,1780249847000,-170.18223489,0.0002959,2]
[423582353,1780249847000,-152.26722604,0.0002959,2]
[423582352,1780249847000,-220.00926133,0.0002959,2]
[423582354,1780249847000,-203.20579011,0.00029617,2]
[423582363,1780249847000,-342.95581947,0.00029618,2]
[423582355,1780249847000,-329.60794298,0.00029618,2]
[423582358,1780249847000,-302.1874548,0.00029618,2]
[423582359,1780249847000,-334.00892996,0.00029618,2]
[423582356,1780249847000,-382.5959117,0.00029618,2]
[423582357,1780249847000,-347.26546326,0.00029618,2]
[423582360,1780249847000,-534.12089782,0.00029618,2]
[423582361,1780249847000,-577.1058903,0.00029618,2]
[423582362,1780249847000,-554.59035667,0.00029618,2]
[423582364,1780249847000,-327.22411274,0.00029618,2]
[423582366,1780249847000,-1877.48,0.00029634,30]
[423582367,1780249847000,-1079.35,0.00029634,30]
[423582311,1780249847000,-572.81,0.00029427,2]
[423582337,1780249847000,-204.86644652,0.00029568,2]
[423582336,1780249847000,-226.52289575,0.00029568,2]
[423582365,1780249847000,-318.26976624,0.00029618,2]
[423582335,1780249847000,-203.96042328,0.00029568,2]
[423582339,1780249847000,-182.89196926,0.00029568,2]
[423582307,1780249847000,-643.75,0.00029421,2]
[423582315,1780249847000,-194.88430375,0.00029452,30]
[423582310,1780249847000,-572.6,0.00029421,2]
[423582314,1780249847000,-184.98,0.00029429,2]
[423582312,1780249847000,-484.75,0.00029429,2]
[423582317,1780249847000,-1079.35,0.00029467,2]
[423582320,1780249847000,-782.07,0.00029467,2]
[423582319,1780249847000,-1037.09,0.00029467,2]
[423582321,1780249847000,-1820.9,0.00029467,2]
[423582322,1780249847000,-2319.0,0.0002949,3]
[423582318,1780249847000,-830.3,0.00029467,2]
[423582323,1780249847000,-1590.0,0.0002949,3]
[423582306,1780249847000,-481.78,0.00029421,2]
[423582325,1780249847000,-2319.0,0.0002949,3]
[423582327,1780249847000,-2319.0,0.0002949,3]
[423582329,1780249847000,-1590.0,0.0002949,3]
[423582340,1780249847000,-171.75727989,0.00029568,2]
[423582338,1780249847000,-196.6187231,0.00029568,2]
[423582334,1780249847000,-168.51375674,0.00029568,2]
[423582331,1780249847000,-10000.0,0.00029534,2]
[423582333,1780249847000,-509.31855336,0.00029546,2]
[423582330,1780249847000,-1122.15214314,0.00029516,2]
[423582328,1780249847000,-2319.0,0.0002949,3]
[423582324,1780249847000,-1590.0,0.0002949,3]
[423582326,1780249847000,-2319.0,0.0002949,3]
[423582332,1780249847000,-150.0,0.00029534,2]
[423582402,1780249848000,-974.58,0.000297,30]
[423582405,1780249848000,-220.0,0.000297,30]
[423582404,1780249848000,-157.0,0.000297,30]
[423582403,1780249848000,-1000.0,0.000297,7]
[423582407,1780249848000,-444.0,0.000297,30]
[423582401,1780249848000,-5020.83,0.000297,14]
[423582398,1780249848000,-1421.0,0.00029699,30]
[423582409,1780249848000,-319.15286215,0.00029704,2]
[423582399,1780249848000,-1144.0,0.00029699,30]
[423582408,1780249848000,-287.0,0.000297,30]
[423582400,1780249848000,-486.43,0.000297,7]
[423582406,1780249848000,-1199.0,0.000297,30]
[423582413,1780249848000,-1174.799,0.000298,10]
[423582421,1780249848000,-782.07,0.00029802,7]
[423582415,1780249848000,-1062.92,0.00029802,7]
[423582412,1780249848000,-1006.31,0.000298,20]
[423582420,1780249848000,-1037.09,0.00029802,7]
[423582417,1780249848000,-1877.48,0.00029802,7]